[Event "Late-Titled-Tuesday-Blitz-April-23-2024"]
[Site "Chess.com"]
[Date "2024.04.23"]
[Round "9"]
[White "manmanlai1"]
[Black "manitodeplomo"]
[Result "0-1"]
[WhiteElo "2518"]
[BlackElo "2657"]
[TimeControl "180+1"]
[EndTime "15:45:46 PDT"]
[Termination "manitodeplomo won by resignation"]

1. e4 {[%clk 0:03:00.9]} 1... Nf6 {[%clk 0:02:59.7]} 2. e5 {[%clk 0:03:00.6]}
2... Nd5 {[%clk 0:03:00.2]} 3. d4 {[%clk 0:03:00.5]} 3... d6 {[%clk 0:03:00.8]}
4. c4 {[%clk 0:03:00.7]} 4... Nb6 {[%clk 0:03:00.7]} 5. f4 {[%clk 0:03:00.9]}
5... dxe5 {[%clk 0:03:00.3]} 6. fxe5 {[%clk 0:03:01.7]} 6... Bf5 {[%clk
0:03:01]} 7. Nc3 {[%clk 0:02:59.1]} 7... e6 {[%clk 0:03:01.1]} 8. Nf3 {[%clk
0:02:58.9]} 8... Bb4 {[%clk 0:03:00.6]} 9. Be2 {[%clk 0:02:56.6]} 9... c5 {[%clk
0:03:00.3]} 10. Be3 {[%clk 0:02:47.9]} 10... Nc6 {[%clk 0:02:59.8]} 11. O-O
{[%clk 0:02:15.2]} 11... O-O {[%clk 0:02:58.6]} 12. d5 {[%clk 0:02:01.4]} 12...
Na5 {[%clk 0:02:58.2]} 13. Na4 {[%clk 0:01:39.7]} 13... Nbxc4 {[%clk 0:02:48.2]}
14. Bf2 {[%clk 0:01:40]} 14... b5 {[%clk 0:02:05.4]} 15. a3 {[%clk 0:01:21.1]}
15... bxa4 {[%clk 0:01:50.1]} 16. axb4 {[%clk 0:01:21.2]} 16... cxb4 {[%clk
0:01:49.6]} 17. Qxa4 {[%clk 0:01:17.7]} 17... exd5 {[%clk 0:01:41.7]} 18. Qxb4
{[%clk 0:01:09.7]} 18... Rb8 {[%clk 0:01:32.9]} 19. Qc5 {[%clk 0:01:03.6]} 19...
Nb3 {[%clk 0:01:30.6]} 20. Qxa7 {[%clk 0:01:03.7]} 20... Nxa1 {[%clk 0:01:29.6]}
21. Rxa1 {[%clk 0:01:04.4]} 21... Rxb2 {[%clk 0:01:27.8]} 22. Bf1 {[%clk
0:01:05]} 22... Nd2 {[%clk 0:01:23.8]} 23. Nxd2 {[%clk 0:01:01.4]} 23... Rxd2
{[%clk 0:01:24.7]} 24. Bc5 {[%clk 0:01:00.8]} 24... Re8 {[%clk 0:01:22.1]} 25.
Bb5 {[%clk 0:01:00.3]} 25... Rxe5 {[%clk 0:01:17]} 26. Bb4 {[%clk 0:00:51.8]}
26... Rde2 {[%clk 0:00:46.1]} 27. Bxe2 {[%clk 0:00:42]} 27... Rxe2 {[%clk
0:00:47]} 28. Qb7 {[%clk 0:00:29.9]} 28... Re8 {[%clk 0:00:38.3]} 29. Ra7 {[%clk
0:00:27.9]} 29... Bg6 {[%clk 0:00:27.1]} 30. Be7 {[%clk 0:00:25.2]} 30... Qc8
{[%clk 0:00:24.9]} 31. Qxd5 {[%clk 0:00:18.4]} 31... Qc1+ {[%clk 0:00:23.6]} 32.
Kf2 {[%clk 0:00:19]} 32... Qf4+ {[%clk 0:00:20.9]} 33. Kg1 {[%clk 0:00:14.9]}
33... Qe3+ {[%clk 0:00:20]} 0-1

[Event "Late-Titled-Tuesday-Blitz-April-23-2024"]
[Site "Chess.com"]
[Date "2024.04.23"]
[Round "9"]
[White "katharinareinecke"]
[Black "jinxy2009"]
[Result "0-1"]
[WhiteElo "2059"]
[BlackElo "2304"]
[TimeControl "180+1"]
[EndTime "15:45:46 PDT"]
[Termination "jinxy2009 won by resignation"]

1. e4 {[%clk 0:02:54.7]} 1... e5 {[%clk 0:02:57.7]} 2. Nc3 {[%clk 0:02:48.1]}
2... Nf6 {[%clk 0:02:55.6]} 3. f4 {[%clk 0:02:47.1]} 3... d5 {[%clk 0:02:55]} 4.
fxe5 {[%clk 0:02:46.7]} 4... Nxe4 {[%clk 0:02:55.5]} 5. Qf3 {[%clk 0:02:46.4]}
5... Nxc3 {[%clk 0:02:54.4]} 6. dxc3 {[%clk 0:02:44.7]} 6... Be7 {[%clk
0:02:48.3]} 7. Bd3 {[%clk 0:02:30.1]} 7... c5 {[%clk 0:02:48.2]} 8. Ne2 {[%clk
0:02:22.4]} 8... Nc6 {[%clk 0:02:45.7]} 9. O-O {[%clk 0:02:19.7]} 9... O-O
{[%clk 0:02:44.6]} 10. Ng3 {[%clk 0:01:30.1]} 10... g6 {[%clk 0:02:41.2]} 11.
Bf4 {[%clk 0:01:24.2]} 11... c4 {[%clk 0:02:38]} 12. Be2 {[%clk 0:01:23.7]}
12... Be6 {[%clk 0:02:32.6]} 13. Rad1 {[%clk 0:01:22.8]} 13... f6 {[%clk
0:02:14.9]} 14. exf6 {[%clk 0:01:17.5]} 14... Bxf6 {[%clk 0:02:15.8]} 15. Bxc4
{[%clk 0:01:16.6]} 15... Ne5 {[%clk 0:01:36.8]} 16. Bxe5 {[%clk 0:01:12.5]}
16... Bxe5 {[%clk 0:01:37.3]} 17. Qe3 {[%clk 0:01:05.7]} 17... Qc7 {[%clk
0:01:21.3]} 18. Rxf8+ {[%clk 0:01:01.8]} 18... Rxf8 {[%clk 0:01:20.3]} 19. Bxd5
{[%clk 0:01:00.5]} 19... Bxd5 {[%clk 0:01:20.3]} 20. Rxd5 {[%clk 0:00:59.6]}
20... Bxg3 {[%clk 0:01:10.9]} 21. hxg3 {[%clk 0:00:53.5]} 21... Qf7 {[%clk
0:01:10.6]} 22. Rd1 {[%clk 0:00:47.7]} 22... Qxa2 {[%clk 0:01:10.5]} 23. Qd4
{[%clk 0:00:37.1]} 23... a6 {[%clk 0:00:58.6]} 24. Qd5+ {[%clk 0:00:35.7]} 24...
Qxd5 {[%clk 0:00:58.3]} 25. Rxd5 {[%clk 0:00:36.6]} 25... Rf7 {[%clk 0:00:53.9]}
26. b4 {[%clk 0:00:33.6]} 26... Kg7 {[%clk 0:00:54.1]} 27. c4 {[%clk 0:00:33.1]}
27... Rc7 {[%clk 0:00:53.9]} 28. c5 {[%clk 0:00:32.5]} 28... Kf6 {[%clk
0:00:53.7]} 29. c4 {[%clk 0:00:31.4]} 29... Re7 {[%clk 0:00:50.1]} 30. Kf2
{[%clk 0:00:31.4]} 30... Re4 {[%clk 0:00:48.7]} 31. b5 {[%clk 0:00:26.6]} 31...
Rxc4 {[%clk 0:00:47.4]} 32. bxa6 {[%clk 0:00:26.8]} 32... bxa6 {[%clk
0:00:47.6]} 33. Rd6+ {[%clk 0:00:27.3]} 33... Kg5 {[%clk 0:00:47.7]} 34. Rxa6
{[%clk 0:00:22.4]} 34... Rxc5 {[%clk 0:00:47.1]} 35. Ra4 {[%clk 0:00:20.5]}
35... Rf5+ {[%clk 0:00:46.5]} 36. Kg1 {[%clk 0:00:20.1]} 36... h5 {[%clk
0:00:47.4]} 37. Kh2 {[%clk 0:00:20.4]} 37... Rc5 {[%clk 0:00:45.7]} 38. Kh3
{[%clk 0:00:20.8]} 38... Kh6 {[%clk 0:00:43]} 39. Kh2 {[%clk 0:00:21.1]} 39...
Rc6 {[%clk 0:00:43]} 40. Kh3 {[%clk 0:00:21.6]} 40... g5 {[%clk 0:00:43.2]} 41.
Kh2 {[%clk 0:00:21.3]} 41... Kg6 {[%clk 0:00:43.5]} 42. Kh3 {[%clk 0:00:21.1]}
42... Re6 {[%clk 0:00:43.4]} 43. Kh2 {[%clk 0:00:21.4]} 43... Re5 {[%clk
0:00:43.7]} 44. Kg1 {[%clk 0:00:21.6]} 44... Kf5 {[%clk 0:00:43.7]} 45. Kf2
{[%clk 0:00:21.1]} 45... Re4 {[%clk 0:00:43.1]} 46. Kf3 {[%clk 0:00:21.2]} 46...
Rxa4 {[%clk 0:00:42.8]} 0-1

[Event "Late-Titled-Tuesday-Blitz-April-23-2024"]
[Site "Chess.com"]
[Date "2024.04.23"]
[Round "9"]
[White "ImportedItalianMaple"]
[Black "Arigu07"]
[Result "0-1"]
[WhiteElo "2458"]
[BlackElo "2584"]
[TimeControl "180+1"]
[EndTime "15:45:49 PDT"]
[Termination "Arigu07 won by checkmate"]

1. e4 {[%clk 0:02:57.3]} 1... a6 {[%clk 0:03:00.9]} 2. g3 {[%clk 0:02:56.7]}
2... d5 {[%clk 0:03:00]} 3. Bg2 {[%clk 0:02:57.6]} 3... dxe4 {[%clk 0:02:59.9]}
4. Nc3 {[%clk 0:02:56.7]} 4... Nf6 {[%clk 0:02:56.6]} 5. Nxe4 {[%clk 0:02:56]}
5... Nxe4 {[%clk 0:02:55]} 6. Bxe4 {[%clk 0:02:56.6]} 6... Nc6 {[%clk
0:02:53.1]} 7. Ne2 {[%clk 0:02:55.8]} 7... e5 {[%clk 0:02:46.5]} 8. d3 {[%clk
0:02:41.5]} 8... Bh3 {[%clk 0:02:44.3]} 9. f4 {[%clk 0:02:33.6]} 9... Bc5 {[%clk
0:02:38.9]} 10. fxe5 {[%clk 0:02:25.8]} 10... O-O {[%clk 0:02:34.4]} 11. Bxc6
{[%clk 0:02:07.7]} 11... bxc6 {[%clk 0:02:31.1]} 12. d4 {[%clk 0:02:08.3]} 12...
Bb6 {[%clk 0:02:29.5]} 13. Nf4 {[%clk 0:01:59.4]} 13... Bf5 {[%clk 0:02:22.8]}
14. c3 {[%clk 0:01:58.2]} 14... Qe7 {[%clk 0:02:12.3]} 15. O-O {[%clk
0:01:48.7]} 15... Qxe5 {[%clk 0:02:08.1]} 16. Qe1 {[%clk 0:01:26]} 16... Qd6
{[%clk 0:01:50.1]} 17. Nh5 {[%clk 0:01:25.7]} 17... Bd3 {[%clk 0:01:44.4]} 18.
Rf3 {[%clk 0:01:13]} 18... Rae8 {[%clk 0:01:43.4]} 19. Re3 {[%clk 0:01:11.7]}
19... Rxe3 {[%clk 0:01:33.9]} 20. Bxe3 {[%clk 0:01:12.6]} 20... Re8 {[%clk
0:01:31]} 21. Nf4 {[%clk 0:01:06.6]} 21... Be4 {[%clk 0:01:25.7]} 22. Qf2 {[%clk
0:01:06.2]} 22... a5 {[%clk 0:01:17.9]} 23. Rf1 {[%clk 0:01:05.4]} 23... a4
{[%clk 0:01:16]} 24. b4 {[%clk 0:00:49.9]} 24... a3 {[%clk 0:01:09.3]} 25. Bc1
{[%clk 0:00:39.4]} 25... Ra8 {[%clk 0:01:09.2]} 26. Re1 {[%clk 0:00:38.8]} 26...
f5 {[%clk 0:01:08.3]} 27. Qe3 {[%clk 0:00:27.5]} 27... Re8 {[%clk 0:00:50.1]}
28. Bxa3 {[%clk 0:00:21.5]} 28... Ra8 {[%clk 0:00:49.9]} 29. Qc1 {[%clk
0:00:20.4]} 29... g5 {[%clk 0:00:45.1]} 30. Ne2 {[%clk 0:00:15.7]} 30... h6
{[%clk 0:00:45.2]} 31. Bb2 {[%clk 0:00:08]} 31... Rxa2 {[%clk 0:00:44]} 32. c4
{[%clk 0:00:07.7]} 32... Qxb4 {[%clk 0:00:44.2]} 33. c5 {[%clk 0:00:07.8]} 33...
Qxb2 {[%clk 0:00:41.1]} 34. cxb6 {[%clk 0:00:08.3]} 34... cxb6 {[%clk
0:00:39.2]} 35. Qc4+ {[%clk 0:00:08]} 35... Bd5 {[%clk 0:00:38.6]} 36. Qd3
{[%clk 0:00:08.7]} 36... Qc2 {[%clk 0:00:38]} 37. Qe3 {[%clk 0:00:08.5]} 37...
Qe4 {[%clk 0:00:32.3]} 38. Qc1 {[%clk 0:00:07.8]} 38... Qg2# {[%clk 0:00:31.9]}
0-1

[Event "Late-Titled-Tuesday-Blitz-April-23-2024"]
[Site "Chess.com"]
[Date "2024.04.23"]
[Round "9"]
[White "Heliosis11"]
[Black "rikchessmx"]
[Result "1-0"]
[WhiteElo "2389"]
[BlackElo "2290"]
[TimeControl "180+1"]
[EndTime "15:45:54 PDT"]
[Termination "Heliosis11 won on time"]

1. e4 {[%clk 0:03:00.9]} 1... c6 {[%clk 0:03:00]} 2. d4 {[%clk 0:02:56.5]} 2...
d5 {[%clk 0:03:00.9]} 3. e5 {[%clk 0:02:57.1]} 3... Bf5 {[%clk 0:03:00.1]} 4. h4
{[%clk 0:02:57.1]} 4... h5 {[%clk 0:02:59.5]} 5. Bd3 {[%clk 0:02:56.7]} 5...
Bxd3 {[%clk 0:02:58.6]} 6. Qxd3 {[%clk 0:02:57.6]} 6... e6 {[%clk 0:02:58.8]} 7.
Bg5 {[%clk 0:02:56.8]} 7... Qa5+ {[%clk 0:02:51.8]} 8. Nd2 {[%clk 0:02:56.3]}
8... Qa6 {[%clk 0:02:50.6]} 9. c4 {[%clk 0:02:35.3]} 9... Bb4 {[%clk 0:02:41.1]}
10. b3 {[%clk 0:02:24.6]} 10... Ne7 {[%clk 0:02:39]} 11. Nf3 {[%clk 0:02:14.8]}
11... Nf5 {[%clk 0:02:32.9]} 12. O-O {[%clk 0:02:13.8]} 12... Nd7 {[%clk
0:02:30.2]} 13. a3 {[%clk 0:02:10.4]} 13... Bxd2 {[%clk 0:02:23.9]} 14. Nxd2
{[%clk 0:02:05.9]} 14... f6 {[%clk 0:02:21.9]} 15. exf6 {[%clk 0:01:57.9]} 15...
gxf6 {[%clk 0:02:22.8]} 16. Rfe1 {[%clk 0:01:57.1]} 16... Kf7 {[%clk 0:02:19.8]}
17. Bf4 {[%clk 0:01:48.7]} 17... Rae8 {[%clk 0:02:14.8]} 18. Qc3 {[%clk
0:01:29.3]} 18... Nxh4 {[%clk 0:02:01.7]} 19. cxd5 {[%clk 0:01:17.8]} 19... exd5
{[%clk 0:01:57]} 20. Qh3 {[%clk 0:01:16.8]} 20... Nb6 {[%clk 0:01:14.7]} 21.
Qxh4 {[%clk 0:01:15]} 21... Qd3 {[%clk 0:01:09.3]} 22. Nf3 {[%clk 0:01:02.7]}
22... Qf5 {[%clk 0:01:04.5]} 23. Bd6 {[%clk 0:00:49.3]} 23... Re4 {[%clk
0:00:57.4]} 24. Qh2 {[%clk 0:00:45.1]} 24... Rhe8 {[%clk 0:00:52.7]} 25. Bc5
{[%clk 0:00:40.4]} 25... Nd7 {[%clk 0:00:41.7]} 26. Qc7 {[%clk 0:00:35]} 26...
Kg6 {[%clk 0:00:34.1]} 27. Nh4+ {[%clk 0:00:29.3]} 27... Rxh4 {[%clk 0:00:33]}
28. Rxe8 {[%clk 0:00:29.4]} 28... Rf4 {[%clk 0:00:15]} 29. Re7 {[%clk 0:00:22]}
29... Nf8 {[%clk 0:00:15]} 30. Rg7+ {[%clk 0:00:21.6]} 30... Kh6 {[%clk
0:00:14.9]} 31. Bxf8 {[%clk 0:00:21.6]} 31... h4 {[%clk 0:00:03]} 32. Rg4+
{[%clk 0:00:19.4]} 32... Kh5 {[%clk 0:00:01.7]} 33. Qxf4 {[%clk 0:00:19.7]}
33... Qxf4 {[%clk 0:00:01]} 34. Rxf4 {[%clk 0:00:20.6]} 1-0

[Event "Late-Titled-Tuesday-Blitz-April-23-2024"]
[Site "Chess.com"]
[Date "2024.04.23"]
[Round "9"]
[White "1g60-1"]
[Black "ozates"]
[Result "0-1"]
[WhiteElo "2445"]
[BlackElo "2562"]
[TimeControl "180+1"]
[EndTime "15:45:55 PDT"]
[Termination "ozates won by resignation"]

1. e4 {[%clk 0:02:53]} 1... c5 {[%clk 0:02:59]} 2. Nf3 {[%clk 0:02:52.9]} 2...
Nc6 {[%clk 0:02:50.8]} 3. d4 {[%clk 0:02:51.9]} 3... cxd4 {[%clk 0:02:51.7]} 4.
Nxd4 {[%clk 0:02:52.6]} 4... e5 {[%clk 0:02:50.8]} 5. Nb5 {[%clk 0:02:52.5]}
5... d6 {[%clk 0:02:51.3]} 6. N1c3 {[%clk 0:02:52.6]} 6... a6 {[%clk 0:02:50.4]}
7. Na3 {[%clk 0:02:52.7]} 7... b5 {[%clk 0:02:50]} 8. Nd5 {[%clk 0:02:53]} 8...
Nge7 {[%clk 0:02:49.3]} 9. c4 {[%clk 0:02:53.2]} 9... Nd4 {[%clk 0:02:49.4]} 10.
Bd3 {[%clk 0:02:53.2]} 10... Nxd5 {[%clk 0:02:48]} 11. cxd5 {[%clk 0:02:52.4]}
11... g6 {[%clk 0:02:47.8]} 12. Nc2 {[%clk 0:02:50.7]} 12... Bg7 {[%clk
0:02:47.7]} 13. Nxd4 {[%clk 0:02:50.8]} 13... exd4 {[%clk 0:02:48.6]} 14. O-O
{[%clk 0:02:44.5]} 14... O-O {[%clk 0:02:48.6]} 15. a4 {[%clk 0:02:35.5]} 15...
b4 {[%clk 0:02:42.6]} 16. a5 {[%clk 0:02:24.3]} 16... f5 {[%clk 0:02:41.4]} 17.
f3 {[%clk 0:02:21]} 17... fxe4 {[%clk 0:02:37.4]} 18. fxe4 {[%clk 0:02:19.7]}
18... Rxf1+ {[%clk 0:02:23.7]} 19. Qxf1 {[%clk 0:02:17.1]} 19... Bd7 {[%clk
0:02:20.5]} 20. Bd2 {[%clk 0:02:01.6]} 20... Be5 {[%clk 0:02:16.1]} 21. g3
{[%clk 0:01:46.8]} 21... h5 {[%clk 0:02:06.1]} 22. Bf4 {[%clk 0:01:30.6]} 22...
h4 {[%clk 0:01:54.4]} 23. Bxa6 {[%clk 0:00:58.3]} 23... Bxf4 {[%clk 0:01:41.4]}
24. gxf4 {[%clk 0:00:59.2]} 24... h3 {[%clk 0:01:28.9]} 25. Bd3 {[%clk
0:00:50.1]} 25... Qh4 {[%clk 0:01:27]} 26. Qf2 {[%clk 0:00:43.6]} 26... Qg4+
{[%clk 0:01:24.8]} 27. Qg3 {[%clk 0:00:42.6]} 27... Qh5 {[%clk 0:01:18.6]} 28.
e5 {[%clk 0:00:25.7]} 28... Bf5 {[%clk 0:01:08.6]} 29. Bxf5 {[%clk 0:00:25.8]}
29... Qxf5 {[%clk 0:01:09]} 30. e6 {[%clk 0:00:19.7]} 30... Kg7 {[%clk
0:01:00.9]} 31. a6 {[%clk 0:00:13]} 31... d3 {[%clk 0:00:49.3]} 32. a7 {[%clk
0:00:11.1]} 32... d2 {[%clk 0:00:46.3]} 33. Rd1 {[%clk 0:00:11.1]} 33... Qxd5
{[%clk 0:00:45.4]} 34. f5 {[%clk 0:00:09.2]} 34... Qxf5 {[%clk 0:00:37.1]} 35.
Qxd6 {[%clk 0:00:09.1]} 35... Qg4+ {[%clk 0:00:35.9]} 36. Kf2 {[%clk 0:00:08.1]}
36... Qxd1 {[%clk 0:00:34.4]} 37. Qe7+ {[%clk 0:00:07.1]} 37... Kh6 {[%clk
0:00:31.6]} 38. Qh4+ {[%clk 0:00:04.6]} 38... Qh5 {[%clk 0:00:32.1]} 39. Qf4+
{[%clk 0:00:04.6]} 39... Qg5 {[%clk 0:00:31.8]} 40. Qxg5+ {[%clk 0:00:04.5]}
40... Kxg5 {[%clk 0:00:32.7]} 41. Ke2 {[%clk 0:00:05.1]} 0-1

[Event "Late-Titled-Tuesday-Blitz-April-23-2024"]
[Site "Chess.com"]
[Date "2024.04.23"]
[Round "9"]
[White "HajiyevKanan"]
[Black "only_strong_moves"]
[Result "0-1"]
[WhiteElo "2611"]
[BlackElo "2727"]
[TimeControl "180+1"]
[EndTime "15:45:56 PDT"]
[Termination "only_strong_moves won by checkmate"]

1. d4 {[%clk 0:03:00.9]} 1... Nf6 {[%clk 0:02:59.7]} 2. Nf3 {[%clk 0:03:01.6]}
2... d5 {[%clk 0:03:00.3]} 3. c4 {[%clk 0:03:02.3]} 3... c5 {[%clk 0:03:01]} 4.
cxd5 {[%clk 0:03:02.9]} 4... cxd4 {[%clk 0:03:01.7]} 5. Qa4+ {[%clk 0:03:01.9]}
5... Qd7 {[%clk 0:03:00.1]} 6. Qxd4 {[%clk 0:03:02.4]} 6... Qxd5 {[%clk
0:02:59.9]} 7. Nc3 {[%clk 0:03:03]} 7... Qxd4 {[%clk 0:02:59.8]} 8. Nxd4 {[%clk
0:03:03.9]} 8... a6 {[%clk 0:03:00.3]} 9. g3 {[%clk 0:03:02.3]} 9... e5 {[%clk
0:03:00.4]} 10. Nb3 {[%clk 0:03:01.4]} 10... Nc6 {[%clk 0:03:01]} 11. Bg2 {[%clk
0:03:01.9]} 11... a5 {[%clk 0:03:01.7]} 12. O-O {[%clk 0:02:52.2]} 12... a4
{[%clk 0:02:59]} 13. Nb5 {[%clk 0:02:43.7]} 13... Rb8 {[%clk 0:02:44.2]} 14. Nd2
{[%clk 0:02:31.4]} 14... Bc5 {[%clk 0:02:35.1]} 15. b3 {[%clk 0:02:11.4]} 15...
O-O {[%clk 0:02:27.7]} 16. bxa4 {[%clk 0:02:10.9]} 16... Ra8 {[%clk 0:02:28.4]}
17. Nb3 {[%clk 0:02:10.8]} 17... Bb6 {[%clk 0:02:18]} 18. Ba3 {[%clk 0:01:59.5]}
18... Rd8 {[%clk 0:02:08.5]} 19. Bc5 {[%clk 0:01:59.4]} 19... Nd7 {[%clk
0:01:53.4]} 20. Rfc1 {[%clk 0:01:22.8]} 20... Rxa4 {[%clk 0:01:16.9]} 21. Bxb6
{[%clk 0:01:19.5]} 21... Nxb6 {[%clk 0:01:17.8]} 22. Bxc6 {[%clk 0:01:15.6]}
22... bxc6 {[%clk 0:01:18.7]} 23. Rxc6 {[%clk 0:01:16]} 23... Nd5 {[%clk
0:01:19.4]} 24. Rd1 {[%clk 0:01:04.1]} 24... Bb7 {[%clk 0:00:50.2]} 25. Rc7
{[%clk 0:00:40.9]} 25... Ba8 {[%clk 0:00:38.3]} 26. e4 {[%clk 0:00:32.4]} 26...
Rxe4 {[%clk 0:00:34.3]} 27. Nc3 {[%clk 0:00:27.3]} 27... Rd4 {[%clk 0:00:22.4]}
28. Nxd4 {[%clk 0:00:11.9]} 28... Nxc7 {[%clk 0:00:21.4]} 29. Nb3 {[%clk
0:00:08]} 29... Rc8 {[%clk 0:00:20.6]} 30. Rc1 {[%clk 0:00:05.2]} 30... Ne6
{[%clk 0:00:17.7]} 31. Nb5 {[%clk 0:00:04.6]} 31... Rd8 {[%clk 0:00:18.3]} 32.
Nc7 {[%clk 0:00:03.7]} 32... Nxc7 {[%clk 0:00:17.3]} 33. Rxc7 {[%clk 0:00:04.6]}
33... Rd1# {[%clk 0:00:17.4]} 0-1

[Event "Late-Titled-Tuesday-Blitz-April-23-2024"]
[Site "Chess.com"]
[Date "2024.04.23"]
[Round "9"]
[White "N_I_Chess"]
[Black "JG-17"]
[Result "0-1"]
[WhiteElo "2392"]
[BlackElo "2556"]
[TimeControl "180+1"]
[EndTime "15:45:56 PDT"]
[Termination "JG-17 won on time"]

1. d4 {[%clk 0:03:00.9]} 1... d5 {[%clk 0:02:59.8]} 2. c4 {[%clk 0:02:45.4]}
2... e6 {[%clk 0:02:57.9]} 3. Nc3 {[%clk 0:02:45.2]} 3... c6 {[%clk 0:02:53.9]}
4. Nf3 {[%clk 0:02:38.8]} 4... Nf6 {[%clk 0:02:53.1]} 5. e3 {[%clk 0:02:36.9]}
5... Nbd7 {[%clk 0:02:53.3]} 6. Qc2 {[%clk 0:02:33]} 6... Bd6 {[%clk 0:02:52.2]}
7. b3 {[%clk 0:02:23.2]} 7... O-O {[%clk 0:02:50.7]} 8. Bd3 {[%clk 0:02:22.4]}
8... e5 {[%clk 0:02:50.6]} 9. dxe5 {[%clk 0:02:17.4]} 9... Nxe5 {[%clk
0:02:50.8]} 10. Nxe5 {[%clk 0:02:15.4]} 10... Bxe5 {[%clk 0:02:51]} 11. Bb2
{[%clk 0:02:10.9]} 11... h6 {[%clk 0:02:28]} 12. cxd5 {[%clk 0:01:44.9]} 12...
Nxd5 {[%clk 0:02:23.3]} 13. Nxd5 {[%clk 0:01:43.3]} 13... Bxb2 {[%clk
0:02:17.8]} 14. Qxb2 {[%clk 0:01:44.2]} 14... Qxd5 {[%clk 0:02:17.8]} 15. Bc4
{[%clk 0:01:21]} 15... Qa5+ {[%clk 0:02:01.6]} 16. Qd2 {[%clk 0:01:17.1]} 16...
Qxd2+ {[%clk 0:02:00]} 17. Kxd2 {[%clk 0:01:18]} 17... Rd8+ {[%clk 0:02:00.7]}
18. Ke2 {[%clk 0:01:17.8]} 18... Bf5 {[%clk 0:02:01.4]} 19. Rhd1 {[%clk
0:01:09.4]} 19... Kf8 {[%clk 0:01:58.4]} 20. Bd3 {[%clk 0:01:05.2]} 20... Be6
{[%clk 0:01:56.4]} 21. Rac1 {[%clk 0:01:04.9]} 21... Ke7 {[%clk 0:01:52.6]} 22.
Rc5 {[%clk 0:00:58.9]} 22... Rd5 {[%clk 0:01:52.4]} 23. Rdc1 {[%clk 0:00:55.6]}
23... a5 {[%clk 0:01:51.2]} 24. Rxd5 {[%clk 0:00:54.6]} 24... Bxd5 {[%clk
0:01:51.1]} 25. e4 {[%clk 0:00:55.2]} 25... Be6 {[%clk 0:01:51]} 26. Rb1 {[%clk
0:00:49.8]} 26... Kd6 {[%clk 0:01:47.3]} 27. a3 {[%clk 0:00:47.4]} 27... b5
{[%clk 0:01:44.2]} 28. Bc2 {[%clk 0:00:44]} 28... b4 {[%clk 0:01:44.3]} 29. Rd1+
{[%clk 0:00:41.4]} 29... Kc7 {[%clk 0:01:39.4]} 30. a4 {[%clk 0:00:38.3]} 30...
c5 {[%clk 0:01:28]} 31. Ke3 {[%clk 0:00:36.3]} 31... Rb8 {[%clk 0:01:09.4]} 32.
f4 {[%clk 0:00:32.5]} 32... c4 {[%clk 0:01:07.5]} 33. bxc4 {[%clk 0:00:23.9]}
33... Bxc4 {[%clk 0:01:08.4]} 34. Rd4 {[%clk 0:00:11.8]} 34... Ba2 {[%clk
0:01:02.8]} 35. Kd2 {[%clk 0:00:10.5]} 35... b3 {[%clk 0:01:02.2]} 36. Bd3
{[%clk 0:00:10]} 36... b2 {[%clk 0:01:02.7]} 37. e5 {[%clk 0:00:03.6]} 37... Rd8
{[%clk 0:00:50.8]} 38. Rxd8 {[%clk 0:00:01.6]} 38... Kxd8 {[%clk 0:00:51.7]} 39.
Ke3 {[%clk 0:00:01.1]} 39... b1=Q {[%clk 0:00:51.8]} 40. Bxb1 {[%clk 0:00:00.9]}
40... Bxb1 {[%clk 0:00:52.7]} 41. Kd2 {[%clk 0:00:00.9]} 41... Kc7 {[%clk
0:00:51.5]} 0-1

[Event "Late-Titled-Tuesday-Blitz-April-23-2024"]
[Site "Chess.com"]
[Date "2024.04.23"]
[Round "9"]
[White "GelmanAlexander"]
[Black "Lennis93"]
[Result "1-0"]
[WhiteElo "2644"]
[BlackElo "2750"]
[TimeControl "180+1"]
[EndTime "15:45:59 PDT"]
[Termination "GelmanAlexander won by checkmate"]

1. d4 {[%clk 0:03:00.9]} 1... Nf6 {[%clk 0:02:46.8]} 2. Nc3 {[%clk 0:03:01.2]}
2... d5 {[%clk 0:02:46.6]} 3. Bf4 {[%clk 0:03:01.4]} 3... a6 {[%clk 0:02:43.9]}
4. e3 {[%clk 0:03:01.6]} 4... c5 {[%clk 0:02:43.4]} 5. Nf3 {[%clk 0:03:01.9]}
5... cxd4 {[%clk 0:02:42.8]} 6. exd4 {[%clk 0:03:01.7]} 6... Nc6 {[%clk
0:02:43.2]} 7. Ne5 {[%clk 0:03:02.1]} 7... Bf5 {[%clk 0:02:41.3]} 8. g4 {[%clk
0:03:02]} 8... Bd7 {[%clk 0:02:09.7]} 9. g5 {[%clk 0:03:00.4]} 9... Ne4 {[%clk
0:02:09.1]} 10. Nxe4 {[%clk 0:02:16.1]} 10... dxe4 {[%clk 0:02:10]} 11. Bg2
{[%clk 0:02:12.9]} 11... Nxe5 {[%clk 0:02:08.9]} 12. Bxe5 {[%clk 0:01:57.9]}
12... Bc6 {[%clk 0:02:05.8]} 13. c3 {[%clk 0:01:50.2]} 13... e6 {[%clk
0:02:05.6]} 14. h4 {[%clk 0:01:48.3]} 14... h6 {[%clk 0:02:05.4]} 15. Qg4 {[%clk
0:01:40.6]} 15... hxg5 {[%clk 0:01:55.3]} 16. hxg5 {[%clk 0:01:40.6]} 16...
Rxh1+ {[%clk 0:01:55]} 17. Bxh1 {[%clk 0:01:41.5]} 17... Qd5 {[%clk 0:01:48.5]}
18. Kf1 {[%clk 0:01:20.1]} 18... a5 {[%clk 0:01:47.4]} 19. Kg1 {[%clk
0:01:18.9]} 19... a4 {[%clk 0:01:47.2]} 20. Re1 {[%clk 0:01:16.7]} 20... Qxa2
{[%clk 0:01:46.3]} 21. Bxe4 {[%clk 0:01:11.9]} 21... Qxb2 {[%clk 0:01:41.4]} 22.
g6 {[%clk 0:01:11.5]} 22... f5 {[%clk 0:01:40.7]} 23. Bxf5 {[%clk 0:00:59.4]}
23... Qxc3 {[%clk 0:01:39.6]} 24. Qe2 {[%clk 0:00:33.4]} 24... Bb4 {[%clk
0:01:09.8]} 25. Rb1 {[%clk 0:00:17.4]} 25... a3 {[%clk 0:01:06.2]} 26. d5 {[%clk
0:00:16.6]} 26... Qd2 {[%clk 0:00:37.8]} 27. Qxd2 {[%clk 0:00:16.3]} 27... Bxd2
{[%clk 0:00:38]} 28. dxc6 {[%clk 0:00:16.5]} 28... a2 {[%clk 0:00:30.2]} 29.
cxb7 {[%clk 0:00:12.9]} 29... axb1=Q+ {[%clk 0:00:29.5]} 30. Bxb1 {[%clk
0:00:13.8]} 30... Rd8 {[%clk 0:00:23.5]} 31. b8=Q {[%clk 0:00:13.7]} 31... Rxb8
{[%clk 0:00:24]} 32. Bxb8 {[%clk 0:00:14.5]} 32... Bc3 {[%clk 0:00:23.5]} 33. f4
{[%clk 0:00:11.2]} 33... Ke7 {[%clk 0:00:24.4]} 34. Kg2 {[%clk 0:00:11.3]} 34...
Kf6 {[%clk 0:00:21.3]} 35. Kf3 {[%clk 0:00:11.9]} 35... Ba1 {[%clk 0:00:17.8]}
36. Be4 {[%clk 0:00:11.2]} 36... Bd4 {[%clk 0:00:16.7]} 37. Bc7 {[%clk
0:00:10.4]} 37... Bc3 {[%clk 0:00:16.2]} 38. Bd8# {[%clk 0:00:09.5]} 1-0